lending/lending_fUSD_20240401
["ID","MTS","AMOUNT","RATE_DAILY","PERIOD"]
[321241649,1712009476642,-1148.89,0.0005945,120]
[321241650,1712009476652,-500.0,0.0005945,120]
[321241651,1712009476662,-517.77,0.0005945,120]
[321241652,1712009476672,-500.0,0.0005945,120]
[321241653,1712009476681,-500.0,0.0005945,120]
[321241654,1712009476691,-546.82,0.0005945,120]
[321241655,1712009476700,-527.78,0.0005945,120]
[321241656,1712009476709,-161.41627732,0.00059451,120]
[321241657,1712009476719,-500.0,0.00059452,120]
[321241658,1712009476728,-500.0,0.00059452,120]
[321241659,1712009476737,-551.71,0.00059452,120]
[321241660,1712009476746,-500.0,0.00059452,120]
[321241661,1712009476759,-500.0,0.00059452,120]
[321241662,1712009476771,-500.0,0.00059452,120]
[321241663,1712009476780,-500.0,0.00059452,120]
[321241664,1712009476790,-500.0,0.00059452,120]
[321241665,1712009476800,-470.09,0.00059452,120]
[321241666,1712009476809,-604.0,0.00059452,120]
[321241667,1712009476819,-500.0,0.00059452,120]
[321241668,1712009476829,-567.46,0.00059452,120]
[321241669,1712009476839,-2940.4,0.00059452,120]
[321241670,1712009476849,-500.0,0.00059452,120]
[321241671,1712009476857,-5164.76194525,0.00059452,120]
[321241672,1712009477326,-2e-08,0.00055342,120]
[321241673,1712009477343,-499.99999998,0.00055342,120]
[321241674,1712009477353,-500.0,0.00055616,120]
[321241675,1712009477363,-552.48,0.00055889,120]
[321241676,1712009477373,-500.0,0.0005589,120]
[321241677,1712009477383,-552.48,0.00056163,120]
[321241678,1712009477393,-139.43751001,0.00056164,120]
[321241679,1712009477668,-423.24248999,0.00056164,120]
[321241680,1712009477678,-500.0,0.00056164,120]
[321241681,1712009477688,-552.48,0.00056437,120]
[321241682,1712009477698,-363.02105622,0.00056438,120]
[321241683,1712009477718,-199.65894378,0.00056438,120]
[321241684,1712009477728,-500.0,0.00056438,120]
[321241685,1712009477737,-552.48,0.00056711,120]
[321241686,1712009477747,-500.0,0.00056712,120]
[321241687,1712009477762,-562.68,0.00056712,120]
[321241688,1712009477772,-500.0,0.00056712,120]
[321241689,1712009477782,-552.48,0.00056985,120]
[321241690,1712009477792,-500.0,0.00056986,120]
[321241691,1712009477801,-562.68,0.00056986,120]
[321241692,1712009477811,-500.0,0.00056986,120]
[321241693,1712009477820,-552.48,0.00057259,120]
[321241694,1712009477830,-500.0,0.0005726,120]
[321241695,1712009477839,-562.68,0.0005726,120]
[321241696,1712009477849,-500.0,0.0005726,120]
[321241697,1712009477858,-552.48,0.00057533,120]
[321241698,1712009477868,-302.24,0.00057534,120]
[321241699,1712009477878,-562.68,0.00057534,120]
[321241700,1712009477887,-500.0,0.00057534,120]
[321241701,1712009477897,-552.48,0.00057807,120]
[321241702,1712009477907,-562.68,0.00057808,120]
[321241703,1712009477916,-500.0,0.00057808,120]
[321241704,1712009477925,-552.48,0.00058081,120]
[321241705,1712009477934,-178.97990689,0.00058082,120]
[321241706,1712009477980,-383.70009311,0.00058082,120]
[321241707,1712009477989,-500.0,0.00058082,120]
[321241708,1712009477998,-552.48,0.00058355,120]
[321241709,1712009478007,-562.68,0.00058356,120]
[321241710,1712009478018,-500.0,0.00058356,120]
[321241711,1712009478027,-552.48,0.00058629,120]
[321241712,1712009478037,-562.68,0.0005863,120]
[321241713,1712009478047,-500.0,0.0005863,120]
[321241714,1712009478056,-151.0,0.0005888,120]
[321241715,1712009478066,-552.48,0.00058903,120]
[321241716,1712009478075,-562.68,0.00058904,120]
[321241717,1712009478085,-500.0,0.00058904,120]
[321241718,1712009478094,-37.58984872,0.00059176,120]
[321241719,1712009478386,-642.76,0.00055058,10]
[321241720,1712009478396,-514.89015128,0.00059176,120]
[321241721,1712009478405,-562.68,0.00059178,120]
[321241722,1712009478415,-500.0,0.00059178,120]
[321241723,1712009478424,-552.48,0.0005945,120]
[321241724,1712009478434,-4452.90805475,0.00059452,120]
[321241725,1712009478444,-500.0,0.00059452,120]
[321241726,1712009478453,-1171.94,0.00059452,120]
[321241727,1712009478462,-500.0,0.00059452,120]
[321241728,1712009478473,-500.0,0.00059452,120]
[321241729,1712009478483,-519.04,0.00059452,120]
[321241730,1712009478493,-381.8565676,0.00059452,120]
[321241731,1712009478503,-318.5,0.00059452,120]
[321241732,1712009478514,-649.04,0.00059452,120]
[321241733,1712009478523,-500.0,0.00059452,120]
[321241734,1712009478532,-735.74,0.00059452,120]
[321241735,1712009478542,-2396.91,0.00059452,120]
[321241736,1712009478551,-710.69,0.00059452,120]
[321241737,1712009478561,-500.0,0.00059452,120]
[321241738,1712009478570,-5307.53,0.00059452,120]
[321241739,1712009478579,-674.12,0.00059452,120]
[321241740,1712009478588,-509.91,0.00059452,120]
[321241741,1712009478597,-500.0,0.00059452,120]
[321241742,1712009478606,-7130.05,0.00059452,120]
[321241743,1712009478616,-784.39,0.00059452,120]
[321241744,1712009478625,-500.0,0.00059452,120]
[321241745,1712009478635,-583.87,0.00059452,120]
[321241746,1712009478644,-683.13,0.00059452,120]
[321241747,1712009478653,-8568.4,0.00059452,120]
[321241748,1712009478662,-402.74990985,0.00059452,120]
[321241749,1712009478979,-97.25009015,0.00059452,120]
[321241750,1712009478989,-828.92,0.00059452,120]
[321241751,1712009478999,-718.19,0.00059452,120]
[321241752,1712009479009,-500.0,0.00059452,120]
[321241753,1712009479018,-524.83,0.00059452,120]
[321241754,1712009479028,-644.16,0.00059452,21]
[321241755,1712009479038,-1373.74,0.00059452,120]
[321241756,1712009479048,-526.38,0.00059452,120]
[321241757,1712009479058,-594.12,0.00059452,120]
[321241758,1712009479068,-610.54,0.00059452,120]
[321241759,1712009479078,-595.4,0.00059452,120]
[321241760,1712009479089,-443.47201046,0.00059452,120]
[321241761,1712009480182,404.51729188,0.0003,4]
[321241767,1712009541459,470.42,0.0003,4]
[321241769,1712010148907,10000.0,0.0003528,120]
[321241772,1712010190857,10000.0,0.0003528,120]
[321241773,1712010203603,1069.82,0.0003528,120]
[321241774,1712010442147,-239.16724607,0.00033,3]
[321241775,1712010549110,-110.83275393,0.00033,3]
[321241776,1712010549133,-200.44915688,0.000349,2]
[321241777,1712010549155,-400.0,0.00035,3]
[321241778,1712010549176,-200.44915688,0.00036304,2]
[321241779,1712010549199,-200.44915688,0.00037708,2]
[321241780,1712010549222,-156.92,0.00037808,2]
[321241781,1712010549243,-157.44,0.00037808,2]
[321241782,1712010549266,-155.20045421,0.000398,2]
[321241783,1712010552111,-8.72511531,0.000398,2]
[321241784,1712010552135,-207.88455727,0.000399,2]
[321241785,1712010552155,-358.27070307,0.0004,30]
[321241786,1712010573115,-1471.0259637,0.00041,14]
[321241787,1712010573140,-499.99,0.00043564,2]
[321241788,1712010573165,-151.0,0.00048,120]
[321241789,1712010573188,-556.74,0.00048,2]
[321241790,1712010573210,-315.53,0.00051225,2]
[321241791,1712010573231,-152.21,0.00052973,120]
[321241792,1712010573255,-872.15,0.00053025,120]
[321241793,1712010573276,-200.0,0.00053041,2]
[321241794,1712010573298,-162.07,0.00053063,120]
[321241795,1712010573319,-500.0,0.00053079,2]
[321241796,1712010573341,-23900.0,0.00053079,2]
[321241797,1712010573362,-500.0,0.00053127,2]
[321241798,1712010573384,-382.35,0.00053143,2]
[321241799,1712010573406,-307.66,0.00053145,120]
[321241800,1712010573427,-897.48,0.00053153,2]
[321241801,1712010573450,-1380.32,0.00053257,2]
[321241802,1712010573474,-250.0,0.00053381,120]
[321241803,1712010573494,-7901.55626709,0.00053416,2]
[321241816,1712010631725,-464.0,0.00043721,30]
[321241817,1712010631736,-151.91763195,0.00043721,48]
[321241818,1712010631746,-394.56,0.00053452,120]
[321241819,1712010631756,-315.53,0.00053489,2]
[321241820,1712010631766,-692.34,0.00053697,120]
[321241821,1712010631776,-151.37,0.00053765,2]
[321241822,1712010631785,-151.37,0.00053965,2]
[321241823,1712010631796,-161.07,0.00054009,2]
[321241824,1712010631806,-161.07,0.00054076,2]
[321241825,1712010631816,-161.07,0.00054144,2]
[321241826,1712010631825,-151.37,0.00054165,2]
[321241827,1712010631834,-161.07,0.00054211,2]
[321241829,1712010631843,-161.07,0.00054279,2]
[321241831,1712010631852,-11129.97629497,0.00054331,2]
[321241833,1712010631865,-3380.38312254,0.00054331,2]
[321241835,1712010631874,-686.26,0.00054341,30]
[321241836,1712010631884,-151.37,0.00054365,2]
[321241837,1712010631894,-415.51,0.00054478,30]
[321241838,1712010631902,-241.79,0.00054478,60]
[321241839,1712010631911,-302.16,0.00054478,30]
[321241840,1712010631920,-694.88,0.00054478,30]
[321241841,1712010631930,-322.62,0.00054478,30]
[321241842,1712010631939,-300.0,0.00054478,30]
[321241843,1712010631948,-436.12,0.00054478,30]
[321241844,1712010631957,-150.0,0.00054478,30]
[321241845,1712010631966,-150.0,0.00054478,30]
[321241846,1712010631976,-150.0,0.00054478,30]
[321241847,1712010631985,-151.37,0.00054565,2]
[321241848,1712010631995,-151.37,0.00054765,2]
[321241849,1712010632004,-29.72364736,0.00054792,4]
[321241865,1712010637507,-171.10429216,0.00054792,4]
[321241867,1712010637517,-196.41457958,0.00054793,2]
[321241868,1712010637527,-500.0,0.00054794,120]
[321241869,1712010637537,-500.0,0.00054794,120]
[321241870,1712010637546,-500.0,0.00054794,120]
[321241871,1712010637556,-500.0,0.00054794,120]
[321241872,1712010637565,-250.31032453,0.00054794,120]
[321241873,1712010637577,-249.68967547,0.00054794,120]
[321241874,1712010637587,-500.0,0.00054794,120]
[321241875,1712010637597,-500.0,0.00054794,120]
[321241876,1712010637607,-500.0,0.00054794,120]
[321241877,1712010637616,-500.0,0.00054794,120]
[321241878,1712010637626,-500.0,0.00054794,120]
[321241879,1712010637635,-500.0,0.00054794,120]
[321241880,1712010637645,-500.0,0.00054794,7]
[321241881,1712010637656,-169.44,0.00054957,2]
[321241882,1712010637665,-151.37,0.00054965,2]
[321241883,1712010637675,-214.9090708,0.00055,120]
[321241884,1712010637684,-926.12701985,0.00055057,2]
[321241885,1712010637694,-173.35,0.00055058,30]
[321241886,1712010637703,-866.78,0.00055058,30]
[321241887,1712010637713,-500.0,0.00055068,120]
[321241888,1712010637722,-500.0,0.00055068,120]
[321241889,1712010637732,-500.0,0.00055068,120]
[321241890,1712010637745,-500.0,0.00055068,120]
[321241891,1712010637754,-500.0,0.00055068,120]
[321241892,1712010637764,-500.0,0.00055068,120]
[321241893,1712010637774,-500.0,0.00055068,120]
[321241894,1712010637783,-500.0,0.00055068,120]
[321241895,1712010637792,-500.0,0.00055068,120]
[321241896,1712010637802,-500.0,0.00055068,120]
[321241897,1712010637812,-500.0,0.00055068,120]
[321241898,1712010637821,-504.8953894,0.00055068,7]
[321241899,1712010637831,-1032.82029715,0.0005514,120]
[321241900,1712010637840,-151.37,0.00055165,2]
[321241901,1712010637850,-5539.3216,0.00055239,4]
[321241902,1712010637859,-6918.72127629,0.0005524,4]
[321241903,1712010637869,-5172.51922183,0.00055241,2]
[321241904,1712010637879,-2901.03846655,0.00055241,2]
[321241905,1712010637888,-887.94798266,0.00055285,60]
[321241906,1712010637923,-2535.48848772,0.00055285,60]
[321241907,1712010637936,-2380.00190032,0.00055285,60]
[321241911,1712010639645,-840.3615102,0.00055285,60]
[321241912,1712010639658,-310.51873967,0.00055285,60]
[321241913,1712010639801,-493.77544059,0.00055285,60]
[321241914,1712010639813,-857.87678068,0.00055285,60]
[321241915,1712010639823,-942.09019458,0.00055328,120]
[321241939,1712010642596,-151.37,0.0005489,2]
[321241940,1712010642605,-151.37,0.00055299,2]
[321241941,1712010642615,-90.73010255,0.00055328,120]
[321241942,1712010642624,-642.76,0.00055331,10]
[321241943,1712010642633,-350.39429447,0.00055331,10]
[321241944,1712010642652,-185.24570553,0.00055331,10]
[321241945,1712010642661,-500.0,0.00055341,120]
[321241946,1712010642671,-378.60702876,0.00055341,120]
[321241947,1712010642706,-121.39297124,0.00055341,120]
[321241948,1712010642716,-500.0,0.00055341,120]
[321241949,1712010642726,-500.0,0.00055341,120]
[321241950,1712010642735,-470.09,0.00055341,120]
[321241951,1712010642744,-500.0,0.00055341,7]
[321241952,1712010642754,-439.77832876,0.00055341,120]
[321241953,1712010642766,-11.18167124,0.00055341,120]
[321241954,1712010642776,-604.0,0.00055341,120]
[321241955,1712010642785,-500.0,0.00055341,120]
[321241956,1712010642795,-500.0,0.00055341,120]
[321241957,1712010642815,-500.0,0.00055341,120]
[321241958,1712010642826,-500.0,0.00055341,120]
[321241959,1712010642835,-500.0,0.00055341,120]
[321241960,1712010642845,-145.75060044,0.00055341,120]
[321241975,1712010645602,-354.24939956,0.00055341,120]
[321241976,1712010645614,-500.0,0.00055341,120]
[321241977,1712010645625,-500.0,0.00055341,120]
[321241978,1712010645636,-500.0,0.00055341,120]
[321241979,1712010645648,-609.35,0.00055341,120]
[321241980,1712010645660,-500.0,0.00055341,120]
[321241981,1712010645671,-510.27,0.00055341,120]
[321241982,1712010645683,-500.0,0.00055341,120]
[321241983,1712010645694,-1000.0,0.00055341,120]
[321241984,1712010645706,-500.0,0.00055341,120]
[321241985,1712010645717,-500.0,0.00055341,120]
[321241986,1712010645733,-500.0,0.00055341,120]
[321241987,1712010645745,-1548.03,0.00055341,120]
[321241988,1712010645755,-500.0,0.00055341,120]
[321241989,1712010645765,-500.0,0.00055341,120]
[321241990,1712010645775,-500.0,0.00055341,120]
[321241991,1712010645786,-500.0,0.00055341,120]
[321241992,1712010645797,-500.0,0.00055341,120]
[321241993,1712010645808,-500.0,0.00055341,120]
[321241994,1712010645820,-500.0,0.00055341,120]
[321241995,1712010645831,-500.0,0.00055341,120]
[321241996,1712010645841,-500.0,0.00055341,120]
[321241997,1712010645851,-500.0,0.00055341,120]
[321241998,1712010645862,-578.05,0.00055341,120]
[321241999,1712010645873,-500.0,0.00055341,120]
[321242000,1712010645883,-500.0,0.00055341,120]
[321242001,1712010645894,-71.63528392,0.00055341,120]
[321242002,1712010645910,-428.36471608,0.00055341,120]
[321242003,1712010645921,-335.24268844,0.00055341,120]
[321242004,1712010645935,-164.75731156,0.00055341,120]
[321242005,1712010645946,-214.20864062,0.00055341,7]
[321242006,1712010645960,-285.79135938,0.00055341,7]
[321242007,1712010645970,-14.20864062,0.00055341,120]
[321242008,1712010645989,-485.79135938,0.00055341,120]
[321242009,1712010646003,-503.67,0.00055341,120]
[321242010,1712010646013,-500.0,0.00055341,120]
[321242011,1712010646023,-329.86685896,0.00055341,120]
[321242013,1712010921864,1500.0,5.9e-05,30]
[321242015,1712011046689,-2833.314105,0.000428,41]
[321242016,1712011046712,-1500.0,0.000433,41]
[321242020,1712011415860,350.0,0.00033,3]
[321242028,1712011641200,-154.63,0.00037808,2]
[321242029,1712011641223,-155.89,0.00037808,2]
[321242030,1712011641242,-1923.2416193,0.00041,2]
[321242031,1712011641263,-170.85174524,0.00043622,2]
[321242032,1712011641284,-231.74282494,0.00050439,2]
[321242033,1712011649146,-139.76717506,0.00050439,2]
[321242034,1712011649169,-1054.69338501,0.000514,2]
[321242035,1712011649189,-10.23282494,0.00051543,2]
[321242036,1712011675487,404.51729188,0.0003,4]
[321242040,1712011759095,-162.0,0.000362,2]
[321242093,1712011839688,-151.91763195,0.00043721,48]
[321242094,1712011839698,-901.23351637,0.00051543,2]
[321242095,1712011839712,-1088.53365869,0.00051543,2]
[321242096,1712011839723,-332.05147299,0.000517,2]
[321242097,1712011839737,-152.0,0.00051983,3]
[321242098,1712011839748,-151.1,0.00052169,120]
[321242099,1712011839759,-21.01886832,0.00052214,120]
[321242102,1712011842641,-732.85113168,0.00052214,120]
[321242103,1712011842651,-310.83503251,0.00052243,120]
[321242104,1712011842749,-415.95496749,0.00052243,120]
[321242105,1712011842759,-500.0,0.00052271,2]
[321242106,1712011842769,-168.83,0.00052357,10]
[321242107,1712011842780,-166.95,0.00052363,120]
[321242108,1712011842789,-151.37,0.0005261,2]
[321242109,1712011842799,-2420.33984336,0.0005261,2]
[321242110,1712011842889,-0.01286958,0.0005261,2]
[321242111,1712011842902,-782.13728706,0.0005261,2]
[321242112,1712011842912,-162.07,0.00052644,120]
[321242113,1712011842922,-371.51,0.00052703,2]
[321242114,1712011842932,-150.0,0.0005276,10]
[321242115,1712011842942,-2275.28271294,0.00052761,2]
[321242116,1712011842954,-21624.71728706,0.00052761,2]
[321242117,1712011842963,-191.17,0.00052804,2]
[321242118,1712011842973,-2773.86,0.00053087,2]
[321242119,1712011842983,-151.37,0.00053295,2]
[321242120,1712011842993,-344.27343237,0.00053297,120]
[321242121,1712011843003,-167.06213893,0.00053316,2]
[321242122,1712011843013,-8665.22754867,0.00053316,2]
[321242123,1712011843022,-344.27343237,0.00053316,120]
[321242124,1712011843032,-234.71880543,0.00053316,30]
[321242125,1712011843043,-1000.0,0.00053377,11]
[321242126,1712011843054,-157.040207,0.00053378,104]
[321242127,1712011843063,-157.040207,0.00053398,105]
[321242128,1712011843073,-169.78,0.00053404,2]
[321242129,1712011843083,-165.37,0.00053404,2]
[321242130,1712011843093,-645.81,0.00053404,10]
[321242131,1712011843103,-538.17,0.00053404,10]
[321242132,1712011843113,-448.48,0.00053404,10]
[321242133,1712011843124,-373.73,0.00053404,10]
[321242134,1712011843134,-1583.91106982,0.00053412,40]
[321242135,1712011843146,-1000.0,0.00053413,120]
[321242136,1712011843156,-453029.71428094,0.00053414,2]
[321242137,1712011843168,-693.43371703,0.00053416,4]
[321242138,1712011843178,-155.0,0.00053416,4]
[321242139,1712011843188,-1040.18522991,0.00053416,4]
[321242140,1712011843198,-219.29110789,0.00053416,120]
[321242141,1712011843208,-155.47290894,0.00053416,2]
[321242142,1712011843218,-322.93917993,0.00053416,4]
[321242143,1712011843229,-1364.38061967,0.00053416,4]
[321242144,1712011843239,-18694.57447643,0.00053416,4]
[321242145,1712011843250,-179.05886858,0.00053416,2]
[321242146,1712011843261,-151.37,0.0005398,2]
[321242147,1712011843271,-246.13,0.00054066,120]
[321242148,1712011843281,-591.59,0.0005422,120]
[321242149,1712011843291,-1000.0,0.00054235,120]
[321242150,1712011843301,-8665.22754863,0.00054256,2]
[321242151,1712011843311,-168.87,0.00054267,2]
[321242152,1712011843322,-155.89,0.00054338,2]
[321242153,1712011843332,-3000.0,0.00054644,2]
[321242154,1712011843342,-151.37,0.00054666,2]
[321242155,1712011843353,-3936.9707,0.00054694,2]
[321242156,1712011843363,-163.91789015,0.00054784,2]
[321242157,1712011843373,-151.99,0.00054784,120]
[321242158,1712011843383,-3760.86588884,0.0005479,2]
[321242159,1712011843395,-317.82078,0.0005479,72]
[321242160,1712011843404,-500.0,0.00054794,120]
[321242161,1712011843413,-500.0,0.00054794,120]
[321242162,1712011843423,-500.0,0.00054794,120]
[321242163,1712011843433,-2856.13,0.00054794,120]
[321242164,1712011843442,-500.0,0.00054794,120]
[321242165,1712011843453,-500.0,0.00054794,120]
[321242166,1712011843462,-500.0,0.00054794,120]
[321242167,1712011843472,-500.0,0.00054794,120]
[321242168,1712011843482,-500.0,0.00054794,120]
[321242169,1712011843495,-500.0,0.00054794,120]
[321242170,1712011843504,-500.0,0.00054794,120]
[321242171,1712011843514,-626.22,0.00054794,120]
[321242172,1712011843524,-500.0,0.00054794,120]
[321242173,1712011843534,-500.0,0.00054794,120]
[321242174,1712011843544,-500.0,0.00054794,120]
[321242175,1712011843554,-500.0,0.00054794,120]
[321242176,1712011843564,-545.64,0.00054794,120]
[321242177,1712011843574,-500.0,0.00054794,120]
[321242178,1712011843583,-500.0,0.00054794,120]
[321242179,1712011843593,-500.0,0.00054794,120]
[321242180,1712011843603,-500.0,0.00054794,120]
[321242181,1712011843612,-500.0,0.00054794,120]
[321242182,1712011843622,-500.0,0.00054794,120]
[321242183,1712011843632,-500.0,0.00054794,120]
[321242184,1712011843642,-1112.79,0.00054794,120]
[321242185,1712011843652,-500.0,0.00054794,120]
[321242186,1712011843662,-1486.34,0.00054794,120]
[321242187,1712011843686,-500.0,0.00054794,120]
[321242188,1712011843698,-500.0,0.00054794,120]
[321242189,1712011843708,-500.0,0.00054794,120]
[321242190,1712011843718,-500.0,0.00054794,120]
[321242191,1712011843729,-500.0,0.00054794,120]
[321242192,1712011843739,-500.0,0.00054794,120]
[321242193,1712011843750,-500.0,0.00054794,120]
[321242194,1712011843760,-500.0,0.00054794,120]
[321242195,1712011843770,-597.35,0.00054794,120]
[321242196,1712011843781,-500.0,0.00054794,120]
[321242197,1712011843792,-500.0,0.00054794,120]
[321242198,1712011843802,-500.0,0.00054794,120]
[321242199,1712011843812,-500.0,0.00054794,120]
[321242200,1712011843822,-500.0,0.00054794,120]
[321242201,1712011843833,-500.0,0.00054794,120]
[321242202,1712011843843,-798.97,0.00054794,120]
[321242203,1712011843853,-500.0,0.00054794,120]
[321242204,1712011843864,-500.0,0.00054794,120]
[321242205,1712011843874,-500.0,0.00054794,120]
[321242206,1712011843884,-500.0,0.00054794,120]
[321242207,1712011843895,-500.0,0.00054794,120]
[321242208,1712011843905,-4103.69,0.00054794,120]
[321242209,1712011843915,-500.0,0.00054794,120]
[321242210,1712011843925,-500.0,0.00054794,120]
[321242211,1712011843935,-2376.69,0.00054794,120]
[321242212,1712011843945,-500.0,0.00054794,120]
[321242213,1712011843956,-500.0,0.00054794,120]
[321242214,1712011843966,-500.0,0.00054794,120]
[321242215,1712011843976,-500.0,0.00054794,120]
[321242216,1712011843986,-500.0,0.00054794,120]
[321242217,1712011843997,-500.0,0.00054794,120]
[321242218,1712011844007,-500.0,0.00054794,120]
[321242219,1712011844017,-500.0,0.00054794,120]
[321242220,1712011844027,-500.0,0.00054794,120]
[321242221,1712011844037,-500.0,0.00054794,21]
[321242222,1712011844047,-500.0,0.00054794,120]
[321242223,1712011844057,-500.0,0.00054794,120]
[321242224,1712011844068,-500.0,0.00054794,120]
[321242225,1712011844078,-500.0,0.00054794,120]
[321242226,1712011844089,-500.0,0.00054794,120]
[321242227,1712011844100,-500.0,0.00054794,120]
[321242228,1712011844110,-500.0,0.00054794,120]
[321242229,1712011844120,-500.0,0.00054794,120]
[321242230,1712011844131,-371.51,0.00054967,2]
[321242231,1712011844142,-1000.0,0.00055057,120]
[321242232,1712011844152,-500.0,0.00055068,120]
[321242233,1712011844162,-500.0,0.00055068,120]
[321242234,1712011844173,-500.0,0.00055068,120]
[321242235,1712011844183,-2856.13,0.00055068,120]
[321242236,1712011844194,-500.0,0.00055068,120]
[321242237,1712011844203,-500.0,0.00055068,120]
[321242238,1712011844213,-500.0,0.00055068,120]
[321242239,1712011844223,-500.0,0.00055068,120]
[321242240,1712011844233,-500.0,0.00055068,120]
[321242241,1712011844243,-500.0,0.00055068,120]
[321242242,1712011844253,-500.0,0.00055068,120]
[321242243,1712011844264,-626.22,0.00055068,120]
[321242244,1712011844275,-500.0,0.00055068,120]
[321242245,1712011844285,-500.0,0.00055068,120]
[321242246,1712011844296,-500.0,0.00055068,120]
[321242247,1712011844308,-500.0,0.00055068,120]
[321242248,1712011844318,-545.64,0.00055068,120]
[321242249,1712011844328,-500.0,0.00055068,120]
[321242250,1712011844339,-500.0,0.00055068,120]
[321242251,1712011844349,-500.0,0.00055068,120]
[321242252,1712011844359,-500.0,0.00055068,120]
[321242253,1712011844370,-500.0,0.00055068,120]
[321242254,1712011844381,-500.0,0.00055068,120]
[321242255,1712011844392,-500.0,0.00055068,120]
[321242256,1712011844577,-1112.79,0.00055068,120]
[321242257,1712011844588,-500.0,0.00055068,120]
[321242258,1712011844599,-1486.34,0.00055068,120]
[321242259,1712011844609,-500.0,0.00055068,120]
[321242260,1712011844618,-500.0,0.00055068,120]
[321242261,1712011844628,-500.0,0.00055068,120]
[321242262,1712011844639,-500.0,0.00055068,120]
[321242263,1712011844650,-500.0,0.00055068,120]
[321242264,1712011844660,-500.0,0.00055068,120]
[321242265,1712011844670,-500.0,0.00055068,120]
[321242266,1712011844682,-500.0,0.00055068,120]
[321242267,1712011844691,-597.35,0.00055068,120]
[321242268,1712011844702,-500.0,0.00055068,120]
[321242269,1712011844712,-500.0,0.00055068,120]
[321242270,1712011844721,-500.0,0.00055068,120]
[321242271,1712011844730,-500.0,0.00055068,120]
[321242272,1712011844740,-468.26,0.00055068,120]
[321242273,1712011844750,-500.0,0.00055068,120]
[321242274,1712011844759,-798.97,0.00055068,120]
[321242275,1712011844770,-500.0,0.00055068,120]
[321242276,1712011844780,-500.0,0.00055068,120]
[321242277,1712011844790,-500.0,0.00055068,120]
[321242278,1712011844800,-500.0,0.00055068,120]
[321242279,1712011844811,-500.0,0.00055068,120]
[321242280,1712011844820,-4103.69,0.00055068,120]
[321242281,1712011844830,-500.0,0.00055068,120]
[321242282,1712011844840,-500.0,0.00055068,120]
[321242283,1712011844849,-2376.69,0.00055068,120]
[321242284,1712011844858,-500.0,0.00055068,120]
[321242285,1712011844867,-500.0,0.00055068,120]
[321242286,1712011844878,-500.0,0.00055068,120]
[321242287,1712011844887,-500.0,0.00055068,120]
[321242288,1712011844896,-500.0,0.00055068,120]
[321242289,1712011844906,-500.0,0.00055068,120]
[321242290,1712011844916,-500.0,0.00055068,120]
[321242291,1712011844926,-296.55,0.00055068,120]
[321242292,1712011844935,-500.0,0.00055068,21]
[321242293,1712011844946,-500.0,0.00055068,120]
[321242294,1712011844955,-500.0,0.00055068,120]
[321242295,1712011844965,-500.0,0.00055068,120]
[321242296,1712011844974,-500.0,0.00055068,120]
[321242297,1712011844986,-500.0,0.00055068,120]